Cogmind - Beta 17.1 @@@ ROGUE MODE // 2026.09.03 @ 14:58:46 Player: Finn Result: Destroyed by G-47 Trooper with Particle Gun Performance ------------- Evolutions (0) 0 Regions Visited (2) 400 Robots Destroyed (18) 90 Value Destroyed (545) 545 Prototype IDs (0) 0 Alien Tech Used (0) 0 Bonus (0) 0 TOTAL SCORE: 1035 Bonus ------- None Cogmind --------- Core Integrity 0/250 Matter 211/300 Energy 99/100 System Corruption 0% Temperature Cool (9) Movement Core (250) Ox4 Location -10/Subcaves Parts ------- > --- POWER (1) -------- (None) > --- PROPULSION (2) --- (None) > --- UTILITY (2) ------ Small Storage Unit > --- WEAPON (2) ------- Light Assault Rifle Subdweller Shrapnel Launcher > --- INVENTORY (8) ---- Subdweller Power Source Salvaging Laser Makeshift Laser Ripper Piercing Trap Peak State ------------ > --- POWER ------------ Subdweller Power Source > --- PROPULSION ------- Subdweller Monowheel Subdweller Monowheel > --- UTILITY ---------- Small Storage Unit Improved Terrain Scanner > --- WEAPON ----------- Subdweller Machine Gun Ripper > --- INVENTORY -------- Subdweller Power Source Compact Wheel Salvaging Laser Light Assault Rifle Barrage Gun Subdweller Shrapnel Launcher Flamer Piercing Trap [Rating: 17] Favorites ----------- Power Subdweller Power Source Engine Subdweller Power Source Propulsion Subdweller Monowheel Leg Aluminum Leg Wheel Subdweller Monowheel Utility Small Storage Unit Device Improved Terrain Scanner Storage Small Storage Unit Protection Makeshift Thermal Plating Weapon Subdweller Machine Gun Energy Gun Makeshift Laser Energy Cannon Subdweller Beam Cannon Ballistic Gun Subdweller Machine Gun Launcher Subdweller Shrapnel Launcher Special Weapon Flamer Slashing Weapon Ripper Build | -11 -10 -10 ------- Run | Yrd Mat Sub Slots Evolved . | . . . Power . | . . . Propulsion . | . . . Utility . | . . . Weapon . | . . . Parts Attached 29 | 7 1 21 Power 5 | 1 . 4 Engine 5 | 1 . 4 Core . | . . . Reactor . | . . . Propulsion 9 | 2 . 7 Treads . | . . . Leg 2 | . . 2 Wheel 7 | 2 . 5 Hover . | . . . Flight . | . . . Utility 3 | 2 . 1 Device 1 | 1 . . Storage 1 | 1 . . Processor . | . . . Hackware . | . . . Protection 1 | . . 1 Artifact . | . . . Weapon 12 | 2 1 9 Energy Gun 4 | 2 . 2 Energy Cannon 1 | . . 1 Ballistic Gun 4 | . 1 3 Ballistic Cannon . | . . . Launcher 1 | . . 1 Special Weapon 1 | . . 1 Impact Weapon . | . . . Slashing Weapon 1 | . . 1 Piercing Weapon . | . . . Special Melee Weapon . | . . . Unidentified Prototypes . | . . . Parts Lost 15 | . . 15 Power 2 | . . 2 Propulsion 8 | . . 8 Utility 1 | . . 1 Weapon 4 | . . 4 Highest Loss Streak 4 | . . 4 To Critical Strikes . | . . . Average Backups 6 | 1 2 6 Power . | . . . Propulsion . | . 1 . Utility . | . . . Weapon 4 | . 1 4 Tool/Special . | . . . Unused Backups 1 | . . 1 Power . | . . . Propulsion . | . . . Utility . | . . . Weapon 1 | . . 1 Tool/Special . | . . . Average Slot Usage (%) 78 | . 100 77 Engine 12 | . 14 12 Leg 5 | . . 5 Wheel 10 | . 28 9 Device 9 | . 14 9 Storage 14 | . 14 14 Energy Gun 4 | . 17 3 Energy Cannon 5 | . . 5 Ballistic Gun 10 | . 10 10 Launcher 1 | . . 1 Slashing Weapon 2 | . . 3 Peak Build Rating 17 | 9 9 17 Average Rating 11 | 5 9 11 On Entrance 6 | . 9 9 Avg Prop Armor Cover (%) 6 | . . 6 Naked Turns . | . . . Heaviest Build 23 | 15 15 23 Greatest Support 40 | 32 32 40 Greatest Overweight (x) 7 | 2 . 7 Average Overweight (x) 1 | . . 1 Largest Inventory Capacity 8 | 8 8 8 Average Capacity 7 | 7 8 8 Most Carried 8 | 3 3 8 Average Carried 6 | 1 2 7 Final Capacity 8 | 8 8 8 Final Carried 5 | 2 3 5 Class Distribution -------------------- 54% | Mutant 45% | Scavenger-Mutant Dominant Class ---------------- Mutant | -10/Materials Mutant | -10/Subcaves Resources | -11 -10 -10 ----------- Run | Yrd Mat Sub Matter Collected 665 | 270 12 383 Remotely . | . . . Salvage Created 620 | 152 38 430 Parts 52 | 14 3 35 Haulers Intercepted . | . . . Recyclers Shooed . | . . . Parts Field Recycled . | . . . Retrieved Matter . | . . . Parts Self-Destructed 10 | . . 10 Prevented . | . . . Parts Restored . | . . . Kills | -11 -10 -10 ------- Run | Yrd Mat Sub Combat Hostiles Destroyed 14 | . 1 13 Melee 1 | . . 1 Guns 8 | . 1 7 Cannons 2 | . . 2 AOE 3 | . . 3 Classes Destroyed 5 | 2 1 2 Tunneler 3 | 3 . . Recycler 1 | 1 . . Swarmer 1 | . . 1 Grunt 2 | . 1 1 Subdweller 11 | . . 11 Best Kill Streak 4 | 4 1 2 Combat Bots Only 2 | . 1 2 Max Kills in Single Turn 1 | 1 1 1 Gunslinging . | . . . Exploded 1 | . . 1 Melee 1 | . . 1 Uniques/NPCs Destroyed . | . . . Combat | -11 -10 -10 -------- Run | Yrd Mat Sub Hostile Shots Fired 73 | . . 73 Missed 13 | . . 13 Hits 60 | . . 60 Projectile 60 | . . 60 AOE 1 | . . 1 Critical Strikes 3 | . . 3 Damage Taken 1529 | . . 1529 Core 261 | . . 261 Absorbed by Shields . | . . . Core Remaining (%) 100 | 100 . . Volleys Fired 78 | 7 2 69 Largest 2 | 2 2 2 Hottest 150 | 90 70 150 Shots Fired 128 | 14 4 110 Gun 102 | 14 4 84 Cannon 18 | . . 18 Launcher 6 | . . 6 Special 2 | . . 2 Kinetic 54 | . 2 52 Thermal 67 | 7 2 58 Explosive . | . . . Electromagnetic 7 | 7 . . Robot Hit Streak 12 | 2 1 12 Robot Miss Streak 3 | 2 1 3 Penetration Max . | . . . Secondary Targets . | . . . Shots Hit Robots 67 | 6 2 59 Core Hits 26 | 4 1 21 Critical Kills . | . . . Critical Parts Destroyed . | . . . Critical Strikes 1 | 1 . . Burn 1 | 1 . . Melee Attacks 2 | . . 2 Impact . | . . . Slashing 2 | . . 2 Piercing . | . . . Sneak Attacks . | . . . Combat Hostiles . | . . . Follow-up Attacks . | . . . Damage Inflicted 1588 | 91 26 1471 Guns 808 | 91 26 691 Cannons 267 | . . 267 Explosions 464 | . . 464 Melee 39 | . . 39 Ramming . | . . . Kinetic 834 | . 14 820 Thermal 661 | 37 12 612 Explosive . | . . . Electromagnetic 54 | 54 . . Impact . | . . . Slashing 39 | . . 39 Piercing . | . . . Highest Corruption . | . . . Average Corruption . | . . . Corruption Purged . | . . . Corruption Blocked . | . . . Overload Shots . | . . . Overflow Damage 70 | . . 70 Projectiles 10 | . . 10 Explosions 60 | . . 60 Melee . | . . . Knockbacks . | . . . Impact . | . . . Kinetic . | . . . Secondary . | . . . Self-Inflicted Damage 118 | . . 118 Shots 2 | . . 2 Rammed . | . . . Targets Rammed . | . . . Kicked . | . . . Crushed . | . . . Highest Temperature 336 | 80 30 336 Average Temperature 80 | 32 18 124 Received Heat Transfer 944 | . . 944 Siege Activations . | . . . Martial Activations . | . . . Shielding Activations . | . . . Robots Disrupted . | . . . Combat Hostiles . | . . . Robots Corrupted . | . . . Combat Hostiles . | . . . Parts Fried . | . . . Impact Corruptions . | . . . Robots Melted . | . . . Combat Hostiles . | . . . Parts Melted 3 | . . 3 Heat Transferred 1328 | 185 37 1106 Parts Sabotaged . | . . . Parts Stolen . | . . . Parts Stripped . | . . . Power Chain Reactions . | . . . Alert | -11 -10 -10 ------- Run | Yrd Mat Sub Maximum Alert Level . | . . . Low Security (%) 100 | 100 100 . Level 1 . | . . . Level 2 . | . . . Level 3 . | . . . Level 4 . | . . . Level 5 . | . . . High Security . | . . . Max Security . | . . . Peak Influence 20 | 10 20 . Initial 3 | . 3 . Average 2 | 2 2 . Influence Increases 90 | 20 20 50 Destroy 0b10 Robot/C 60 | . 20 40 Destroy 0b10 Robot/NC 20 | 20 . . Destroy Leader 10 | . . 10 Influence Decreases 70 | 15 25 30 Entered New Map 2 | . 2 . Time Decay 68 | 15 23 30 Squads Dispatched 1 | . 1 . Investigation . | . . . Extermination . | . . . Reinforcement 1 | . 1 . Assault . | . . . Garrison . | . . . Intercept . | . . . Searches Triggered . | . . . Construction Impeded . | . . . Haulers Reinforced . | . . . Active Scanning Responses . | . . . Cargo Convoy Interrupts . | . . . Stealth | -11 -10 -10 --------- Run | Yrd Mat Sub Distress Signals 3 | . 3 . Communications Jammed . | . . . Distress Signals . | . . . Times Spotted 21 | . 6 15 Peak Tracking Total 2 | . 1 2 Tactical Retreats . | . . . Traps | -11 -10 -10 ------- Run | Yrd Mat Sub Traps Triggered 2 | . . 2 Indirectly . | . . . Trap Hack Attempts . | . . . Triggered . | . . . Disarmed . | . . . Reprogrammed . | . . . Reused . | . . . Traps Extracted . | . . . Installed . | . . . Triggered . | . . . Most Traps Carried 1 | . . 1 Machines | -11 -10 -10 ---------- Run | Yrd Mat Sub Machines Disabled . | . . . Max in Single Turn . | . . . Machines Repaired . | . . . Machines Dismantled . | . . . Machines Sabotaged . | . . . Overloaded Fab Kills . | . . . Hacking | -11 -10 -10 --------- Run | Yrd Mat Sub Machines Accessed 4 | . 1 3 Terminals 1 | . 1 . Fabricators . | . . . Repair Stations . | . . . Recycling Units . | . . . Scanalyzers . | . . . Garrison Access . | . . . Total Hacks 8 | . 1 7 Successful 7 | . . 7 Failed 1 | . 1 . Catastrophic . | . . . Database Lockouts . | . . . Manual . | . . . Terminals 1 | . 1 . Fabricators . | . . . Repair Stations . | . . . Recycling Units . | . . . Scanalyzers . | . . . Garrison Access . | . . . Terminal Hacks 7 | . . 7 Record 5 | . . 5 Open Door 1 | . . 1 Release Object 1 | . . 1 Fabricator Hacks . | . . . Repair Station Hacks . | . . . Recycling Unit Hacks . | . . . Scanalyzer . | . . . Garrison Access Hacks . | . . . Unauthorized Hacks . | . . . Terminals . | . . . Fabricators . | . . . Repair Stations . | . . . Recycling Units . | . . . Scanalyzers . | . . . Garrison Access . | . . . Data Cores Recovered . | . . . Used . | . . . Hacking Detections . | . . . Full Trace Events . | . . . Feedback Events . | . . . Feedback Blocked . | . . . Robot Schematics Acquired . | . . . Robots Built . | . . . Authchips . | . . . Time . | . . . Total Robot Build Rating . | . . . Part Schematics Acquired . | . . . Parts Built . | . . . Authchips . | . . . Time . | . . . Total Part Build Rating . | . . . Part Studies Acquired . | . . . Parts Repaired . | . . . Time . | . . . Parts Recycled . | . . . Recycled Matter . | . . . Retrieved Matter . | . . . Retrieved Components . | . . . Parts Scanalyzed . | . . . Part Schematics Acquired . | . . . Parts Damaged . | . . . Bothacking | -11 -10 -10 ------------ Run | Yrd Mat Sub Used RIF Installer . | . . . Robots Hacked . | . . . Non-combat . | . . . Combat . | . . . Robot Hacks Applied . | . . . Relay Couplers Released . | . . . Fabnet Peak Effective % . | . . . Robots Rewired . | . . . Allies Hacked . | . . . Hacks Repelled . | . . . Allies | -11 -10 -10 -------- Run | Yrd Mat Sub Total Allies . | . . . Largest Group . | . . . Highest-Rated Group . | . . . Highest-Rated Ally . | . . . Total Orders . | . . . Ally Attacks . | . . . Total Damage . | . . . Kills . | . . . Allies Corrupted . | . . . Allies Melted . | . . . Intel | -11 -10 -10 ------- Run | Yrd Mat Sub Active Infowar (turns) 2457 | 22 204 2231 Terrain 2457 | 22 204 2231 Robot Analysis Total . | . . . Derelict Logs Recovered 2 | . . 2 Drone Launches . | . . . Drone Recoveries . | . . . Exploration | -11 -10 -10 ------------- Run | Yrd Mat Sub Turns Passed 3516 | 85 204 3227 Spaces Moved 1816 | 49 159 1608 Core 391 | 6 . 385 Treads . | . . . Legs 310 | . . 310 Wheels 1115 | 43 159 913 Hover . | . . . Flight . | . . . Fastest Speed 50 | 50 100 100 Average Speed 162 | 100 100 170 Slowest Speed 400 | 150 100 400 Overloaded Moves . | . . . Propulsion Burnouts . | . . . Robots Hopped . | . . . Potential Cave-ins . | . . . Cave-ins Triggered . | . . . Exploration Rate (%) 42 | 3 36 89 Regions Visited 2 Branch Regions 1 Pre-discovered Areas 3 | . . 3 Known Exits Taken . | . . . Unknown Exits Taken 2 | 1 1 . Scrap Searched 11 | . . 11 Spaces Dug . | . . . Terrain Destroyed 59 | . . 59 Melee . | . . . Projectile 1 | . . 1 AOE 58 | . . 58 Terrain Rammed . | . . . Walls Destroyed . | . . . Machines Disabled . | . . . Actions | -11 -10 -10 --------- Run | Yrd Mat Sub Total 2246 | 71 199 1976 Wait 282 | . 37 245 Move 1814 | 48 158 1608 Hop . | . . . Pick Up 22 | 9 1 12 Fast Attach 4 | . . 4 Attach 14 | 7 . 7 Detach . | . . . Swap 20 | . 1 19 Drop 8 | . . 8 Fire 78 | 7 2 69 Melee 2 | . . 2 Ram . | . . . Kick . | . . . Crush . | . . . Escape Stasis . | . . . Rewire 2 | . . 2 Trap . | . . . Miscellaneous . | . . . Route ------- -11/Scrapyard -10/Materials (discovered 2 exits: [*Mat] / *Sub) -10/Subcaves (discovered 2 exits: [*Mat x2]) History --------- Turn | Location | Event 27 | -11/Scrapyard | Discovered new exit (range 14) 86 | -11/Scrapyard | Entered Materials 87 | -10/Materials | Met a group of wandering Federalists 244 | -10/Materials | Discovered new exit (range 8) 282 | -10/Materials | Discovered new exit (range 8) 290 | -10/Materials | Entered Subcaves 291 | -10/Subcaves | Continued accompanying wandering Federalists (2) 313 | -10/Subcaves | Build established: Mutant 357 | -10/Subcaves | Lost 3 parts (1p2n) 491 | -10/Subcaves | Discovered new exit (range 15) 668 | -10/Subcaves | Build established: Scavenger-Mutant 693 | -10/Subcaves | Discovered new exit (range 10) 1022 | -10/Subcaves | Disturbed a concealed Subdweller 1946 | -10/Subcaves | Build established: Mutant 2368 | -10/Subcaves | Visited Clippyterm 2371 | -10/Subcaves | Learned location of Deep Caves (-6) 2371 | -10/Subcaves | Learned Factory emergency access door positions 2377 | -10/Subcaves | Shifting Twisted Machinery released Mak. Light Armor Plating 2379 | -10/Subcaves | Shifting Twisted Machinery released Piercing Trap 2382 | -10/Subcaves | Learned location of Storage (-8) 2512 | -10/Subcaves | Disturbed a concealed Subdweller 2526 | -10/Subcaves | Build established: Scavenger-Mutant 2634 | -10/Subcaves | Core integrity fell below 50% 2828 | -10/Subcaves | Build established: Mutant 3116 | -10/Subcaves | Core integrity fell below 20% 3146 | -10/Subcaves | Lost 4 parts (1p2n1w) 3278 | -10/Subcaves | Curiously followed by a Cobbler waking with a query about "LVR3C" 3517 | -10/Subcaves | Destroyed by G-47 Trooper with Particle Gun Last Messages --------------- number one! Although mostly just a persistent nuisance in their natural Subcaves environment where a certain balance has been achieved, there is a high probability that sudden introduction into previously unexposed areas could cause more extreme side effects. Take all precautions to prevent this from happening. >>Release Inventory Accessing inventory controls... Collection purity confirmed 100%... Ejecting SUBCON Basin... Delivery behind schedule, handle with care! 03475_ Acquired 9 matter. 03480_ Acquired 13 matter. 03511_ Sub. Monowheel destroyed. 03515_ Critical hit (Burn: +37). 03517_ G-34 Mercenary destroyed. 03517_ Destroyed Imp. Heat Sink. 03517_ Destroyed Lgt. Nuclear Core. Map ----- +----------------------------------------------------+ | ?????????????????????????????????????????????????? | | ?????????????????????????????????????????????????? | | ?????????????????????????????????????????????????? | | ?????????????????????????????????????????????????? | | ?????????????????????????????????????????????????? | | ?????????????????????????????????????????????????? | | ?????????????????????????????????????????????????? | | ?????????????????????????????????????????????????? | | ?????????????????????????????????????????????????? | | ?????????????????????????????????????????????????? | | ?????????????????????????????????????????????????? | | ?????????????????????????????????????????????????? | | ?????????????????????????????????????????????????? | | ?????????????????????????????????????????????????? | | ?????????????????????????????????????????????????? | | #?###????????????????????????????????????????????? | | ### #????????????????????????????????????????????? | | # #?????????????????????????????????#??????????? | | #????????????????????####????????? ##????????? | | ##??????????????????## ##???????? ####?????? | | #?###?????????????## #??????? ????? | | ### ###???????????# %#??????? #????? | | #???######??# #??????? ??????? | | #???# #??# #??????? #???????? | | % ##???# #### ##?##### #???????? | | ###??# @ % ### % #????????? | | ## # #### #????????? | | ## # # ## % ### #????? | | #### ####### #????? | | ##??## # ## #?????# ; #????? | | ###???# ## ### #???## ?? #????? | | ??????## ##? #???# % ??????????? | | ??????? #? ##??# g ??????????? | | ??????# ##??# #??????????? | | ??????# ###??# #??????????? | | ??????## % #????# ##### ##??????????? | | ???????#########???# #????# # ##??????????? | | ???????????????????##% ?????#####; #??????????? | | ????????????????????##??????????## #?????#????? | | ????????????????????????????????# ""##???? ?????? | | ??#?????????????????????????????# ""#???? ##????? | | ???????????????????????????## ### " ##### #????? | | ???????????????????????????# "" ""#"# ##????? | | ???????#??????????????????## """" """"" #????? | | ????????#????????????????## """" #?????? | | ?????????????????????????# % # ###?????? | | ????????????????????????# ###" ##????????? | | ?????????????????????????#""#??#" ##???????? | | #????????????????????????###???#" "#???????? | | #??????????????????????????###?#" "###???????? | +----------------------------------------------------+ Best States ------------- Heat Dissipation 25 Energy Generation 15 Energy Capacity 250 Matter Stores 300 Matter Capacity 300 Sight Range 16 Terrain Scan Range 16 Terrain Scan Density 10 Evasion (%) 40 Item Schematics ----------------- None Robot Schematics ------------------ None Fabricated ------------ Nothing Repaired ---------- Nothing Studied --------- None Alien Tech Used ----------------- None Achievements -------------- None Challenges ------------ None Game ------ Seed SmallModifiedRedistributor Manual? 0 Play Time 00:18:12 Cumulative 27.9 hours Start 2026.09.03 @ 14:44:49 End 2026.09.03 @ 14:58:46 Sessions 1 Manual Loads 0 Difficulty Rogue Special Mode None Game No. 67 Rogue 50 Adventurer 15 Explorer 2 Win Type - Total 0 Types 0/0/0/0/0/0/0/0/0/0 Lore% 24 Gallery% 23 Achievement% 20 Wizard Run 0 Options --------- Layout 1 ASCII 0 Keyboard 0 Movement Mouse Keybinds 0 Fullscreen 1 Font 24/Smallcaps Map View 50x35 Zoom Use 0% Tactical HUD 1 Map Filters NONE Filters NONE Steam 1 RUN: 6cae9474-6b01-45df-bf0a-cc5d6916e92a